fUSD/lending_fUSD_20240712
["ID","MTS","AMOUNT","RATE_DAILY","PERIOD"]
[331841807,1720791041218,-820.89,0.000137,2]
[331841809,1720791041227,-820.89,0.000137,2]
[331841811,1720791041236,-820.89,0.000137,2]
[331841813,1720791041245,-328.88198309,0.00013705,2]
[331841815,1720791041254,-1000.0,0.00013708,2]
[331841817,1720791041263,-179.62485198,0.00013708,2]
[331841819,1720791041272,-229.35908494,0.00013708,2]
[331841821,1720791041282,-5000.0,0.00013719,2]
[331841823,1720791041291,-3271.13086808,0.00013719,2]
[331841825,1720791041300,-12783.00439513,0.00013736,2]
[331841827,1720791041309,-151.0,0.00013736,2]
[331841829,1720791041318,-5288.49661811,0.0001375,2]
[331841831,1720791041327,-500.0,0.00013752,2]
[331841833,1720791041336,-500.0,0.00013752,2]
[331841835,1720791041346,-282.77126889,0.00013752,2]
[331841837,1720791041354,-500.0,0.00013753,2]
[331841839,1720791041363,-500.0,0.00013753,2]
[331841841,1720791041372,-514.71392542,0.00013753,2]
[331841843,1720791041382,-500.0,0.00013753,2]
[331841845,1720791041391,-986.92,0.00013753,2]
[331841847,1720791041401,-500.0,0.00013753,2]
[331841849,1720791041411,-500.0,0.00013753,2]
[331841851,1720791041420,-500.0,0.00013753,2]
[331841852,1720791041429,-500.0,0.00013753,2]
[331841853,1720791041442,-548.08,0.00013753,2]
[331841854,1720791041452,-835.63,0.00013753,2]
[331841855,1720791041461,-500.0,0.00013753,2]
[331841856,1720791041471,-500.0,0.00013753,2]
[331841857,1720791041480,-500.0,0.00013753,2]
[331841858,1720791041489,-500.0,0.00013753,2]
[331841859,1720791041499,-500.0,0.00013753,2]
[331841860,1720791041508,-500.0,0.00013753,2]
[331841861,1720791041517,-500.0,0.00013753,2]
[331841863,1720791041527,-500.0,0.00013753,2]
[331841865,1720791041537,-461.33178552,0.00013753,2]
[331841867,1720791041546,-201.63051403,0.00013753,2]
[331841869,1720791041556,-655.51,0.00013753,2]
[331841871,1720791041565,-500.0,0.00013753,2]
[331841873,1720791041575,-500.0,0.00013753,2]
[331841875,1720791041584,-500.0,0.00013753,2]
[331841877,1720791041594,-500.0,0.00013753,2]
[331841879,1720791041602,-500.0,0.00013753,2]
[331841881,1720791041611,-500.0,0.00013753,2]
[331841883,1720791041621,-500.0,0.00013753,2]
[331841885,1720791041630,-500.0,0.00013753,2]
[331841887,1720791041639,-554.17,0.00013753,2]
[331841889,1720791041648,-500.0,0.00013753,2]
[331841891,1720791041658,-661.71,0.00013753,2]
[331841893,1720791041668,-500.0,0.00013753,2]
[331841895,1720791041677,-500.0,0.00013753,2]
[331841897,1720791041690,-577.2,0.00013753,2]
[331841899,1720791041699,-500.0,0.00013753,2]
[331841901,1720791041707,-500.0,0.00013753,2]
[331841903,1720791041716,-710.31,0.00013753,2]
[331841905,1720791041726,-549.58,0.00013753,2]
[331841907,1720791041735,-500.0,0.00013753,2]
[331841909,1720791041744,-290.39183416,0.00013753,2]
[331841911,1720791041753,-500.0,0.00013753,2]
[331841913,1720791041762,-500.0,0.00013753,2]
[331841915,1720791041771,-797.19,0.00013753,2]
[331841917,1720791041780,-500.0,0.00013753,2]
[331841918,1720791041789,-500.0,0.00013753,2]
[331841920,1720791041798,-500.0,0.00013753,2]
[331841923,1720791041808,-500.0,0.00013753,2]
[331841924,1720791041817,-500.0,0.00013753,2]
[331841926,1720791041827,-500.0,0.00013753,2]
[331841928,1720791041836,-500.0,0.00013753,2]
[331841931,1720791041846,-500.0,0.00013753,2]
[331841932,1720791041855,-500.0,0.00013753,2]
[331841934,1720791041864,-500.0,0.00013753,2]
[331841936,1720791041873,-500.0,0.00013753,2]
[331841938,1720791041882,-579.3,0.00013753,2]
[331841940,1720791041891,-500.0,0.00013753,2]
[331841942,1720791041901,-500.0,0.00013753,2]
[331841944,1720791041910,-500.0,0.00013753,2]
[331841946,1720791041920,-500.0,0.00013753,2]
[331841948,1720791041929,-500.0,0.00013753,2]
[331841950,1720791041940,-500.0,0.00013753,2]
[331841952,1720791041952,-736.49,0.00013753,2]
[331841954,1720791041962,-500.0,0.00013753,2]
[331841956,1720791041971,-500.0,0.00013753,2]
[331841958,1720791041980,-500.0,0.00013753,2]
[331841960,1720791041991,-500.0,0.00013753,2]
[331841962,1720791042000,-500.0,0.00013753,2]
[331841964,1720791042009,-500.0,0.00013753,2]
[331841966,1720791042018,-500.0,0.00013753,2]
[331841968,1720791042027,-500.0,0.00013753,2]
[331841970,1720791042037,-660.05,0.00013753,2]
[331841972,1720791042046,-592.77,0.00013753,2]
[331841974,1720791042055,-500.0,0.00013753,2]
[331841976,1720791042065,-500.0,0.00013753,2]
[331841978,1720791042074,-500.0,0.00013753,2]
[331841980,1720791042083,-387.19478825,0.00013753,2]
[331841982,1720791042092,-500.0,0.00013753,2]
[331841984,1720791042101,-500.0,0.00013753,2]
[331841986,1720791042110,-500.0,0.00013753,2]
[331841988,1720791042119,-500.0,0.00013753,2]
[331841990,1720791042129,-500.0,0.00013753,2]
[331841992,1720791042139,-500.0,0.00013753,2]
[331841994,1720791042147,-500.0,0.00013753,2]
[331841996,1720791042157,-500.0,0.00013753,2]
[331841997,1720791042166,-967.72,0.00013753,2]
[331841999,1720791042175,-500.0,0.00013753,2]
[331842001,1720791042184,-500.0,0.00013753,2]
[331842003,1720791042196,-500.0,0.00013753,2]
[331842005,1720791042205,-519.47975443,0.00013753,2]
[331842007,1720791042215,-500.0,0.00013753,2]
[331842009,1720791042224,-500.0,0.00013753,2]
[331842011,1720791042233,-788.0,0.00013753,2]
[331842013,1720791042242,-500.0,0.00013753,2]
[331842015,1720791042252,-651.59,0.00013753,2]
[331842017,1720791042262,-798.8,0.00013753,2]
[331842019,1720791042271,-500.0,0.00013753,2]
[331842021,1720791042280,-500.0,0.00013753,2]
[331842023,1720791042290,-500.0,0.00013753,2]
[331842025,1720791042299,-500.0,0.00013753,2]
[331842027,1720791042308,-500.0,0.00013753,2]
[331842029,1720791042318,-500.0,0.00013753,2]
[331842031,1720791042327,-500.0,0.00013753,2]
[331842033,1720791042336,-500.0,0.00013753,2]
[331842035,1720791042346,-500.0,0.00013753,2]
[331842038,1720791042355,-500.0,0.00013753,2]
[331842040,1720791042365,-1060.72,0.00013753,2]
[331842041,1720791042374,-500.0,0.00013753,2]
[331842044,1720791042383,-608.43,0.00013753,2]
[331842045,1720791042392,-500.0,0.00013753,2]
[331842048,1720791042402,-500.0,0.00013753,2]
[331842049,1720791042411,-500.0,0.00013753,2]
[331842051,1720791042420,-609.86,0.00013753,2]
[331842053,1720791042429,-500.0,0.00013753,2]
[331842055,1720791042441,-1071.97,0.00013753,2]
[331842057,1720791042450,-695.4,0.00013753,2]
[331842059,1720791042460,-500.0,0.00013753,2]
[331842061,1720791042469,-612.61,0.00013753,2]
[331842063,1720791042478,-500.0,0.00013753,2]
[331842065,1720791042487,-500.0,0.00013753,2]
[331842067,1720791042496,-500.0,0.00013753,2]
[331842069,1720791042506,-836.9,0.00013753,2]
[331842071,1720791042515,-500.0,0.00013753,2]
[331842072,1720791042525,-500.0,0.00013753,2]
[331842074,1720791042536,-500.0,0.00013753,2]
[331842076,1720791042545,-500.0,0.00013753,2]
[331842078,1720791042554,-500.0,0.00013753,2]
[331842080,1720791042563,-500.0,0.00013753,2]
[331842082,1720791042573,-500.0,0.00013753,2]
[331842084,1720791042582,-894.22,0.00013753,2]
[331842086,1720791042591,-500.0,0.00013753,2]
[331842088,1720791042600,-500.0,0.00013753,2]
[331842090,1720791042609,-500.0,0.00013753,2]
[331842092,1720791042618,-500.0,0.00013753,2]
[331842094,1720791042628,-691.07,0.00013753,2]
[331842096,1720791042637,-500.0,0.00013753,2]
[331842098,1720791042649,-500.0,0.00013753,2]
[331842100,1720791042658,-500.0,0.00013753,2]
[331842102,1720791042669,-500.0,0.00013753,2]
[331842104,1720791042678,-618.73,0.00013753,2]
[331842106,1720791042687,-500.0,0.00013753,2]
[331842108,1720791042698,-500.0,0.00013753,2]
[331842110,1720791042707,-500.0,0.00013753,2]
[331842112,1720791042717,-500.0,0.00013753,2]
[331842113,1720791042726,-500.0,0.00013753,2]
[331842115,1720791042735,-500.0,0.00013753,2]
[331842117,1720791042745,-500.0,0.00013753,2]
[331842120,1720791042754,-500.0,0.00013753,2]
[331842122,1720791042764,-500.0,0.00013753,2]
[331842124,1720791042774,-500.0,0.00013753,2]
[331842126,1720791042783,-500.0,0.00013753,2]
[331842128,1720791042792,-500.0,0.00013753,2]
[331842130,1720791042801,-500.0,0.00013753,2]
[331842133,1720791042810,-500.0,0.00013753,2]
[331842137,1720791042820,-500.0,0.00013753,2]
[331842141,1720791042829,-500.0,0.00013753,2]
[331842144,1720791042838,-500.0,0.00013753,2]
[331842147,1720791042848,-757.41,0.00013753,2]
[331842149,1720791042857,-500.0,0.00013753,2]
[331842152,1720791042866,-500.0,0.00013753,2]
[331842155,1720791042876,-500.0,0.00013753,2]
[331842157,1720791042885,-817.28,0.00013753,2]
[331842159,1720791042894,-744.54,0.00013753,2]
[331842162,1720791042903,-500.0,0.00013753,2]
[331842165,1720791042912,-500.0,0.00013753,2]
[331842167,1720791042921,-551.52,0.00013753,2]
[331842169,1720791042931,-500.0,0.00013753,2]
[331842171,1720791042941,-909.73,0.00013753,2]
[331842173,1720791042954,-190.287642,0.00013753,2]
[331842175,1720791042964,-500.0,0.00013753,2]
[331842176,1720791042974,-858.51,0.00013753,2]
[331842178,1720791042983,-830.77,0.00013753,2]
[331842180,1720791042994,-500.0,0.00013753,2]
[331842182,1720791043003,-500.0,0.00013753,2]
[331842184,1720791043013,-681.02,0.00013753,2]
[331842185,1720791043022,-546.02,0.00013753,2]
[331842188,1720791043032,-500.0,0.00013753,2]
[331842190,1720791043043,-583.01,0.00013753,2]
[331842192,1720791043052,-500.0,0.00013753,2]
[331842194,1720791043061,-1464.46,0.00013753,2]
[331842196,1720791043071,-503.97,0.00013753,2]
[331842198,1720791043081,-500.0,0.00013753,2]
[331842200,1720791043090,-500.0,0.00013753,2]
[331842202,1720791043100,-500.0,0.00013753,2]
[331842204,1720791043109,-582.45,0.00013753,2]
[331842206,1720791043119,-681.24,0.00013753,2]
[331842208,1720791043129,-1030.58,0.00013753,2]
[331842210,1720791043139,-500.0,0.00013753,2]
[331842213,1720791043149,-500.0,0.00013753,2]
[331842216,1720791043160,-946.02,0.00013753,2]
[331842218,1720791043169,-781.6,0.00013753,2]
[331842220,1720791043179,-500.0,0.00013753,2]
[331842222,1720791043189,-500.0,0.00013753,2]
[331842224,1720791043199,-500.0,0.00013753,2]
[331842226,1720791043209,-1112.13,0.00013753,2]
[331842228,1720791043219,-500.0,0.00013753,2]
[331842230,1720791043228,-1092.56,0.00013753,2]
[331842233,1720791043238,-500.0,0.00013753,2]
[331842237,1720791043247,-500.0,0.00013753,2]
[331842241,1720791043258,-500.0,0.00013753,2]
[331842245,1720791043267,-708.57,0.00013753,2]
[331842247,1720791043277,-500.0,0.00013753,2]
[331842249,1720791043287,-609.73,0.00013753,2]
[331842251,1720791043297,-500.0,0.00013753,2]
[331842253,1720791043306,-914.26,0.00013753,2]
[331842255,1720791043315,-537.37,0.00013753,2]
[331842257,1720791043324,-825.71,0.00013753,2]
[331842259,1720791043334,-500.0,0.00013753,2]
[331842261,1720791043343,-500.0,0.00013753,2]
[331842264,1720791043353,-500.0,0.00013753,2]
[331842267,1720791043363,-500.0,0.00013753,2]
[331842269,1720791043373,-539.79,0.00013753,2]
[331842271,1720791043383,-500.0,0.00013753,2]
[331842273,1720791043392,-500.0,0.00013753,2]
[331842275,1720791043402,-500.0,0.00013753,2]
[331842277,1720791043411,-500.0,0.00013753,2]
[331842279,1720791043422,-660.94,0.00013753,2]
[331842281,1720791043431,-500.0,0.00013753,2]
[331842283,1720791043442,-500.0,0.00013753,2]
[331842285,1720791043452,-730.16,0.00013753,2]
[331842287,1720791043461,-500.0,0.00013753,2]
[331842289,1720791043470,-500.0,0.00013753,2]
[331842291,1720791043480,-500.0,0.00013753,2]
[331842293,1720791043490,-500.0,0.00013753,2]
[331842295,1720791043500,-500.0,0.00013753,2]
[331842297,1720791043510,-500.0,0.00013753,2]
[331842299,1720791043519,-500.0,0.00013753,2]
[331842301,1720791043529,-632.47,0.00013753,2]
[331842303,1720791043539,-524.63,0.00013753,2]
[331842305,1720791043549,-500.0,0.00013753,2]
[331842307,1720791043559,-515.69,0.00013753,2]
[331842309,1720791043570,-500.0,0.00013753,2]
[331842311,1720791043580,-797.85,0.00013753,2]
[331842313,1720791043590,-500.0,0.00013753,2]
[331842315,1720791043600,-500.0,0.00013753,2]
[331842317,1720791043610,-500.0,0.00013753,2]
[331842319,1720791043620,-500.0,0.00013753,2]
[331842321,1720791043630,-500.0,0.00013753,2]
[331842323,1720791043639,-500.0,0.00013753,2]
[331842325,1720791043650,-500.0,0.00013753,2]
[331842327,1720791043661,-500.0,0.00013753,2]
[331842329,1720791043671,-788.67,0.00013753,2]
[331842331,1720791043680,-608.93,0.00013753,2]
[331842334,1720791043695,-484.46392755,0.00013753,2]
[331842336,1720791043705,-902.57,0.00013753,2]
[331842338,1720791043715,-500.0,0.00013753,2]
[331842340,1720791043724,-500.0,0.00013753,2]
[331842342,1720791043734,-500.0,0.00013753,2]
[331842344,1720791043746,-500.0,0.00013753,2]
[331842346,1720791043756,-915.91,0.00013753,2]
[331842348,1720791043766,-500.0,0.00013753,2]
[331842349,1720791043775,-500.0,0.00013753,2]
[331842352,1720791043786,-500.0,0.00013753,2]
[331842354,1720791043795,-808.71,0.00013753,2]
[331842356,1720791043805,-549.34,0.00013753,2]
[331842358,1720791043815,-719.58,0.00013753,2]
[331842360,1720791043825,-500.0,0.00013753,2]
[331842362,1720791043834,-500.0,0.00013753,2]
[331842364,1720791043844,-500.0,0.00013753,2]
[331842366,1720791043854,-648.77,0.00013753,2]
[331842368,1720791043864,-522.7721897,0.00013753,2]
[331842370,1720791043875,-634.79,0.00013753,2]
[331842372,1720791043886,-500.0,0.00013753,2]
[331842374,1720791043895,-501.24,0.00013753,2]
[331842376,1720791043907,-500.0,0.00013753,2]
[331842378,1720791043917,-500.0,0.00013753,2]
[331842380,1720791043927,-500.0,0.00013753,2]
[331842382,1720791043938,-987.56,0.00013753,2]
[331842384,1720791043958,-500.0,0.00013753,2]
[331842386,1720791043968,-590.6,0.00013753,2]
[331842388,1720791043978,-996.73,0.00013753,2]
[331842390,1720791043988,-500.0,0.00013753,2]
[331842392,1720791043999,-1014.5,0.00013753,2]
[331842394,1720791044010,-500.0,0.00013753,2]
[331842396,1720791044020,-500.0,0.00013753,2]
[331842398,1720791044030,-500.0,0.00013753,2]
[331842400,1720791044040,-500.0,0.00013753,2]
[331842402,1720791044050,-757.89,0.00013753,2]
[331842404,1720791044060,-636.51,0.00013753,2]
[331842406,1720791044069,-500.0,0.00013753,2]
[331842408,1720791044079,-500.0,0.00013753,2]
[331842410,1720791044089,-500.0,0.00013753,2]
[331842412,1720791044099,-500.0,0.00013753,2]
[331842414,1720791044109,-500.0,0.00013753,2]
[331842417,1720791044119,-500.0,0.00013753,2]
[331842419,1720791044128,-500.0,0.00013753,2]
[331842421,1720791044138,-500.0,0.00013753,2]
[331842423,1720791044148,-500.0,0.00013753,2]
[331842425,1720791044158,-500.0,0.00013753,2]
[331842427,1720791044167,-800.79,0.00013753,2]
[331842429,1720791044177,-640.34,0.00013753,2]
[331842431,1720791044187,-500.0,0.00013753,2]
[331842433,1720791044199,-612.73,0.00013753,2]
[331842434,1720791044208,-500.0,0.00013753,2]
[331842437,1720791044217,-500.0,0.00013753,2]
[331842439,1720791044227,-500.0,0.00013753,2]
[331842441,1720791044236,-700.91,0.00013753,2]
[331842443,1720791044246,-500.0,0.00013753,2]
[331842445,1720791044255,-500.0,0.00013753,2]
[331842447,1720791044265,-1215.38,0.00013753,2]
[331842449,1720791044275,-500.0,0.00013753,2]
[331842450,1720791044284,-773.68,0.00013753,2]
[331842451,1720791044294,-500.0,0.00013753,2]
[331842452,1720791044303,-422.54466388,0.00013753,2]
[331842453,1720791044313,-950.66,0.00013753,2]
[331842454,1720791044322,-500.0,0.00013753,2]
[331842455,1720791044332,-551.13,0.00013753,2]
[331842456,1720791044341,-531.62,0.00013753,2]
[331842457,1720791044350,-866.46,0.00013753,2]
[331842459,1720791044360,-500.0,0.00013753,2]
[331842461,1720791044369,-970.42,0.00013753,2]
[331842463,1720791044379,-660.87,0.00013753,2]
[331842465,1720791044388,-732.14,0.00013753,2]
[331842467,1720791044397,-869.96,0.00013753,2]
[331842469,1720791044407,-500.0,0.00013753,2]
[331842471,1720791044417,-647.32,0.00013753,2]
[331842473,1720791044426,-515.78,0.00013753,2]
[331842475,1720791044436,-812.86,0.00013753,2]
[331842477,1720791044449,-500.0,0.00013753,2]
[331842479,1720791044459,-871.01,0.00013753,2]
[331842481,1720791044469,-603.45,0.00013753,2]
[331842483,1720791044478,-500.0,0.00013753,2]
[331842485,1720791044488,-500.0,0.00013753,2]
[331842487,1720791044498,-500.0,0.00013753,2]
[331842489,1720791044508,-1208.65,0.00013753,2]
[331842491,1720791044517,-985.48,0.00013753,2]
[331842493,1720791044527,-567.82,0.00013753,2]
[331842496,1720791044537,-500.0,0.00013753,2]
[331842498,1720791044547,-844.85,0.00013753,2]
[331842500,1720791044556,-500.0,0.00013753,2]
[331842502,1720791044566,-500.0,0.00013753,2]
[331842504,1720791044576,-500.0,0.00013753,2]
[331842506,1720791044586,-500.0,0.00013753,2]
[331842508,1720791044595,-500.0,0.00013753,2]
[331842510,1720791044605,-917.37,0.00013753,2]
[331842512,1720791044615,-945.94,0.00013753,2]
[331842514,1720791044625,-1042.31,0.00013753,2]
[331842516,1720791044636,-500.0,0.00013753,2]
[331842518,1720791044646,-500.0,0.00013753,2]
[331842520,1720791044656,-500.0,0.00013753,2]
[331842522,1720791044666,-520.65,0.00013753,2]
[331842524,1720791044676,-500.0,0.00013753,2]
[331842526,1720791044685,-500.0,0.00013753,2]
[331842528,1720791044698,-1463.08,0.00013753,2]
[331842530,1720791044708,-671.26,0.00013753,2]
[331842532,1720791044718,-500.0,0.00013753,2]
[331842534,1720791044727,-500.0,0.00013753,2]
[331842536,1720791044737,-550.07,0.00013753,2]
[331842538,1720791044747,-500.0,0.00013753,2]
[331842540,1720791044758,-482.54,0.00013753,2]
[331842542,1720791044767,-591.16,0.00013753,2]
[331842545,1720791044777,-814.1,0.00013753,2]
[331842547,1720791044787,-836.54,0.00013753,2]
[331842549,1720791044797,-500.0,0.00013753,2]
[331842551,1720791044807,-700.0,0.00013753,2]
[331842553,1720791044817,-500.0,0.00013753,2]
[331842555,1720791044827,-500.0,0.00013753,2]
[331842557,1720791044837,-500.0,0.00013753,2]
[331842559,1720791044847,-895.92,0.00013753,2]
[331842560,1720791044857,-1473.19,0.00013753,2]
[331842562,1720791044868,-500.0,0.00013753,2]
[331842583,1720791045069,-500.0,0.00013753,2]
[331842585,1720791045079,-740.86,0.00013753,2]
[331842587,1720791045089,-731.04,0.00013753,2]
[331842589,1720791045099,-471.41773507,0.00013753,2]
[331842591,1720791045108,-500.0,0.00013753,2]
[331842593,1720791045117,-500.0,0.00013753,2]
[331842595,1720791045127,-500.0,0.00013753,2]
[331842597,1720791045136,-755.64,0.00013753,2]
[331842599,1720791045146,-812.5,0.00013753,2]
[331842602,1720791045155,-1013.35,0.00013753,2]
[331842604,1720791045165,-500.0,0.00013753,2]
[331842606,1720791045174,-582.27,0.00013753,2]
[331842608,1720791045183,-1338.36,0.00013753,2]
[331842610,1720791045195,-500.0,0.00013753,2]
[331842612,1720791045204,-500.0,0.00013753,2]
[331842614,1720791045213,-652.21,0.00013753,2]
[331842616,1720791045222,-500.0,0.00013753,2]
[331842618,1720791045232,-500.0,0.00013753,2]
[331842620,1720791045242,-1190.22,0.00013753,2]
[331842622,1720791045251,-500.0,0.00013753,2]
[331842624,1720791045261,-500.0,0.00013753,2]
[331842626,1720791045271,-909.29,0.00013753,2]
[331842628,1720791045280,-500.0,0.00013753,2]
[331842630,1720791045290,-757.46,0.00013753,2]
[331842631,1720791045299,-619.47,0.00013753,2]
[331842634,1720791045308,-1127.42,0.00013753,2]
[331842636,1720791045318,-500.0,0.00013753,2]
[331842637,1720791045327,-794.38,0.00013753,2]
[331842640,1720791045336,-880.21,0.00013753,2]
[331842641,1720791045345,-500.0,0.00013753,2]
[331842644,1720791045355,-500.0,0.00013753,2]
[331842646,1720791045364,-500.0,0.00013753,2]
[331842648,1720791045373,-500.0,0.00013753,2]
[331842650,1720791045383,-500.0,0.00013753,2]
[331842652,1720791045392,-500.0,0.00013753,2]
[331842654,1720791045401,-587.44,0.00013753,2]
[331842656,1720791045410,-500.0,0.00013753,2]
[331842658,1720791045419,-500.0,0.00013753,2]
[331842660,1720791045428,-500.0,0.00013753,2]
[331842662,1720791045437,-464.71899848,0.00013753,2]
[331842664,1720791045448,-500.0,0.00013753,2]
[331842666,1720791045458,-500.0,0.00013753,2]
[331842668,1720791045467,-500.0,0.00013753,2]
[331842670,1720791045476,-1081.67,0.00013753,2]
[331842672,1720791045486,-500.0,0.00013753,2]
[331842674,1720791045495,-500.0,0.00013753,2]
[331842676,1720791045504,-500.0,0.00013753,2]
[331842678,1720791045513,-500.0,0.00013753,2]
[331842680,1720791045523,-500.0,0.00013753,2]
[331842682,1720791045533,-519.0,0.00013753,2]
[331842683,1720791045543,-500.0,0.00013753,2]
[331842684,1720791045552,-1110.82,0.00013753,2]
[331842685,1720791045563,-584.47,0.00013753,2]
[331842686,1720791045572,-1529.73,0.00013753,2]
[331842687,1720791045582,-500.0,0.00013753,2]
[331842688,1720791045591,-500.0,0.00013753,2]
[331842689,1720791045600,-910.64,0.00013753,2]
[331842690,1720791045609,-500.0,0.00013753,2]
[331842692,1720791045618,-500.0,0.00013753,2]
[331842694,1720791045627,-500.0,0.00013753,2]
[331842696,1720791045637,-1525.69,0.00013753,2]
[331842698,1720791045646,-693.26,0.00013753,2]
[331842700,1720791045655,-500.0,0.00013753,2]
[331842702,1720791045666,-500.0,0.00013753,2]
[331842704,1720791045675,-500.0,0.00013753,2]
[331842706,1720791045684,-531.42,0.00013753,2]
[331842708,1720791045695,-570.65,0.00013753,2]
[331842710,1720791045704,-1368.74,0.00013753,2]
[331842712,1720791045714,-500.0,0.00013753,2]
[331842714,1720791045723,-500.0,0.00013753,2]
[331842716,1720791045732,-500.0,0.00013753,2]
[331842718,1720791045741,-500.0,0.00013753,2]
[331842720,1720791045751,-1287.58,0.00013753,2]
[331842722,1720791045760,-500.0,0.00013753,2]
[331842724,1720791045769,-500.0,0.00013753,2]
[331842726,1720791045779,-500.0,0.00013753,2]
[331842728,1720791045789,-500.0,0.00013753,2]
[331842730,1720791045799,-500.0,0.00013753,2]
[331842732,1720791045808,-507.62,0.00013753,2]
[331842734,1720791045818,-500.0,0.00013753,2]
[331842735,1720791045827,-500.0,0.00013753,2]
[331842737,1720791045836,-500.0,0.00013753,2]
[331842739,1720791045846,-683.38,0.00013753,2]
[331842742,1720791045855,-755.61,0.00013753,2]
[331842745,1720791045864,-756.56,0.00013753,2]
[331842747,1720791045873,-500.0,0.00013753,2]
[331842749,1720791045883,-615.67,0.00013753,2]
[331842751,1720791045892,-500.0,0.00013753,2]
[331842753,1720791045902,-542.18,0.00013753,2]
[331842755,1720791045911,-1266.98,0.00013753,2]
[331842757,1720791045921,-500.0,0.00013753,2]
[331842759,1720791045930,-500.0,0.00013753,2]
[331842762,1720791045939,-832.92,0.00013753,2]
[331842764,1720791045952,-500.0,0.00013753,2]
[331842766,1720791045963,-500.0,0.00013753,2]
[331842768,1720791045973,-619.39,0.00013753,2]
[331842770,1720791045983,-679.06,0.00013753,2]
[331842772,1720791045995,-819.28,0.00013753,2]
[331842774,1720791046005,-1227.87,0.00013753,2]
[331842776,1720791046014,-500.0,0.00013753,2]
[331842778,1720791046024,-576.46,0.00013753,2]
[331842780,1720791046034,-547.31,0.00013753,2]
[331842783,1720791046045,-500.0,0.00013753,2]
[331842785,1720791046055,-500.0,0.00013753,2]
[331842787,1720791046064,-675.42,0.00013753,2]
[331842789,1720791046074,-500.0,0.00013753,2]
[331842791,1720791046084,-500.0,0.00013753,2]
[331842792,1720791046094,-500.0,0.00013753,2]
[331842794,1720791046103,-603.06,0.00013753,2]
[331842796,1720791046113,-616.05,0.00013753,2]
[331842798,1720791046123,-500.0,0.00013753,2]
[331842801,1720791046133,-544.51,0.00013753,2]
[331842804,1720791046143,-5348.78,0.00013753,2]
[331842807,1720791046152,-500.0,0.00013753,2]
[331842810,1720791046162,-919.08,0.00013753,2]
[331842813,1720791046171,-903.92,0.00013753,2]
[331842815,1720791046181,-1706.52,0.00013753,2]
[331842818,1720791046191,-1402.28,0.00013753,2]
[331842820,1720791046201,-500.0,0.00013753,2]
[331842822,1720791046210,-628.56,0.00013753,2]
[331842824,1720791046219,-615.92,0.00013753,2]
[331842827,1720791046229,-500.0,0.00013753,2]
[331842830,1720791046239,-500.0,0.00013753,2]